Workbook

Sheet TES
A1: NAMA | B1: SEMESTER 1 | E1: SEMESTER 2 | H1: SEMESTER 3 | K1: SEMESTER 4 | N1: SEMESTER 5 | Q1: SEMESTER 6 | T1: RESUME | U1: Rata-Rata
B2: NILAI | D2: HASIL | E2: NILAI | G2: HASIL | H2: NILAI | J2: HASIL | K2: NILAI | M2: HASIL | N2: NILAI | P2: HASIL | Q2: NILAI | S2: HASIL
B3: UTS | C3: UAS | E3: UTS | F3: UAS | H3: UTS | I3: UAS | K3: UTS | L3: UAS | N3: UTS | O3: UAS | Q3: UTS | R3: UAS
A4: SABDA | B4: 74 | C4: 84 | D4: =SUM(B4:C4) -> 158 | E4: 81 | F4: 72 | G4: =SUM(E4:F4) -> 153 | H4: 60 | I4: 65 | J4: =SUM(H4:I4) -> 125 | K4: 90 | L4: 70 | M4: =SUM(K4:L4) -> 160 | N4: 80 | O4: 86 | P4: =SUM(N4:O4) -> 166 | Q4: 42 | R4: 60 | S4: =SUM(Q4:R4) -> 102 | T4: =nilai(D4,G4,J4,M4,P4,S4) -> buruk | U4: =ROUND(AVERAGEIF($B$2:$S$2,"Hasil",B4:S4),2) -> 144
A5: RIO | B5: 60 | C5: 63 | D5: =SUM(B5:C5) -> 123 | E5: 60 | F5: 71 | G5: =SUM(E5:F5) -> 131 | H5: 90 | I5: 86 | J5: =SUM(H5:I5) -> 176 | K5: 67 | L5: 71 | M5: =SUM(K5:L5) -> 138 | N5: 81 | O5: 91 | P5: =SUM(N5:O5) -> 172 | Q5: 63 | R5: 63 | S5: =SUM(Q5:R5) -> 126 | T5: =nilai(D5,G5,J5,M5,P5,S5) -> baik | U5: =ROUND(AVERAGEIF($B$2:$S$2,"Hasil",B5:S5),2) -> 144.33
A6: BUDI | B6: 80 | C6: 65 | D6: 145 | E6: 85 | F6: 56 | G6: 141 | H6: 68 | I6: 74 | J6: 142 | K6: 68 | L6: 73 | M6: 141 | N6: 82 | O6: 98 | P6: 180 | Q6: 68 | R6: 71 | S6: 139 | T6: =nilai(D6,G6,J6,M6,P6,S6) -> buruk | U6: =ROUND(AVERAGEIF($B$2:$S$2,"Hasil",B6:S6),2) -> 148
A7: SIGIT | B7: 71 | C7: 85 | D7: 156 | E7: 62 | F7: 81 | G7: 143 | H7: 87 | I7: 81 | J7: 168 | K7: 69 | L7: 75 | M7: 144 | N7: 83 | O7: 97 | P7: 180 | Q7: 60 | R7: 65 | S7: 125 | T7: buruk | U7: 152.67
A8: ANDI | B8: 72 | C8: 77 | D8: 149 | E8: 84 | F8: 77 | G8: 161 | H8: 65 | I8: 66 | J8: 131 | K8: 85 | L8: 66 | M8: 151 | N8: 87 | O8: 96 | P8: 183 | Q8: 60 | R8: 64 | S8: 124 | T8: baik | U8: 149.83
